bitfinex-derivatives/quotes_SOLF0:USTF0_20250818
["timestamp","ask_amount","ask_price","bid_price","bid_amount"]
[1755508607653,8.4418594,180.02,179.96,3.17]
[1755508607849,3.14,180.07,179.96,3.17]
[1755508608053,9.72493658,180.06,179.99,3.17]
[1755508608258,5.30286441,180.05,179.99,3.17]
[1755508608460,3.14,180.07,179.99,3.17]
[1755508608656,3.14,180.07,180.0,3.17]
[1755508609167,3.14,180.1,180.02,3.17]
[1755508609367,3.14,180.08,180.02,3.17]
[1755508609660,9.70776859,180.07,180.02,3.17]
[1755508609858,3.14,180.05,180.02,3.17]
[1755508610053,3.14,180.07,179.99,3.17]
[1755508610251,4.60112548,180.14,180.01,5.552]
[1755508610461,3.14,180.12,180.02,3.17]
[1755508610758,9.70981807,180.11,180.05,3.17]
[1755508610967,3.14,180.15,180.08,3.17]
[1755508611463,3.14,180.18,180.1,4.60112548]
[1755508611657,9.71274705,180.17,180.11,3.17]
[1755508611856,3.14,180.15,180.11,3.17]
[1755508612056,5.30051048,180.14,180.08,2.94]
[1755508612260,3.13,180.16,180.08,2.94]
[1755508612565,9.71091151,180.15,180.08,2.94]
[1755508612861,3.13,180.16,180.08,2.94]
[1755508613252,3.13,180.16,180.07,4.60112548]
[1755508613460,3.13,180.16,180.08,2.94]
[1755508613662,4.41059264,180.15,180.08,2.94]
[1755508613861,3.13,180.16,180.08,2.94]
[1755508614163,4.41061699,180.15,180.08,2.94]
[1755508614365,3.13,180.16,180.08,2.94]
[1755508614662,3.13,180.14,180.08,2.94]
[1755508614861,0.96629089,180.19,180.08,2.94]
[1755508614862,9.60015445,180.13,180.08,2.94]
[1755508615166,0.96629089,180.19,179.99,372.94]
[1755508615167,3.13,180.11,180.03,2.94]
[1755508615463,3.13,180.09,180.03,2.94]
[1755508616157,7.53434535,180.08,180.0,2.94]
[1755508616358,3.13,180.08,180.0,2.94]
[1755508616553,9.58880252,180.07,180.0,2.94]
[1755508616757,3.13,180.06,180.0,2.94]
[1755508618566,5.5516,180.03,180.0,2.94]
[1755508619064,5.5518,180.02,180.0,2.94]
[1755508619363,6.1764783,180.14,180.0,2.94]
[1755508619565,5.5514,180.04,180.0,2.94]
[1755508620161,3.13,180.08,180.0,2.94]
[1755508620364,3.13,180.12,180.01,2.94]
[1755508620558,3.13,180.12,180.04,7.18572805]
[1755508620760,5.18375668,180.11,180.05,2.94]
[1755508620969,3.13,180.11,180.05,2.94]
[1755508621565,23.75276919,180.19,180.05,2.94]
[1755508621765,3.13,180.17,180.07,2.94]
[1755508622069,3.13,180.15,180.07,2.94]
[1755508622264,9.58733197,180.14,180.07,2.94]
[1755508622462,9.95108793,180.13,180.08,5.5497]
[1755508622661,3.13,180.17,180.09,2.94]
[1755508622875,9.63857749,180.16,180.09,2.94]
[1755508623060,3.13,180.2,180.11,2.94]
[1755508623259,3.13,180.22,180.11,2.94]
[1755508623460,5.19228951,180.21,180.11,2.94]
[1755508623766,3.13,180.28,180.15,2.94]
[1755508623962,3.13,180.26,180.15,2.94]
[1755508624163,3.13,180.28,180.19,2.94]
[1755508624468,3.13,180.31,180.19,2.94]
[1755508624669,5.5446,180.26,180.21,5.5458]
[1755508624866,5.5446,180.26,180.22,2.94]
[1755508625066,3.13,180.29,180.22,2.94]
[1755508625363,3.13,180.27,180.2,2.94]
[1755508626767,3.13,180.33,180.2,2.94]
[1755508626974,5.5439,180.28,180.23,2.94]
[1755508627459,3.13,180.31,180.23,8.4851]
[1755508627460,5.5437,180.29,180.23,8.4851]
[1755508627665,5.5437,180.29,180.09,203.24]
[1755508627666,3.13,180.31,180.24,2.94]
[1755508628466,4.30166953,180.3,180.16,7.18572805]
[1755508628669,373.96556699,180.34,180.16,7.18572805]
[1755508628670,4.30159351,180.29,180.18,2.94]
[1755508628975,3.13,180.28,180.19,2.94]
[1755508630063,4.30419644,180.27,180.19,2.94]
[1755508630264,7.43368238,180.26,180.19,2.94]
[1755508630477,3.13,180.24,180.11,7.18572805]
[1755508630676,3.13,180.24,180.12,2.94]
[1755508630871,3.13,180.22,180.12,2.94]
[1755508631280,3.13,180.22,180.08,7.18572805]
[1755508631467,4.30356009,180.21,180.13,2.94]
[1755508631672,7.43356009,180.2,180.13,2.94]
[1755508631978,7.18572805,180.26,180.13,2.94]
[1755508632170,3.13,180.22,180.13,2.94]
[1755508632678,3.13,180.22,180.14,2.94]
[1755508632879,3.13,180.25,180.14,2.94]
[1755508634274,4.31131602,180.24,180.14,2.94]
[1755508634482,3.13,180.28,180.14,2.94]
[1755508634778,3.13,180.26,180.14,2.94]
[1755508634976,3.13,180.24,180.15,2.94]
[1755508635181,7.44193026,180.23,180.15,2.94]
[1755508635372,3.13,180.23,180.15,2.94]
[1755508636374,4.31724579,180.22,180.15,2.94]
[1755508636578,7.44724579,180.21,180.15,2.94]
[1755508636780,3.13,180.21,180.15,2.94]
[1755508637675,3.13,180.24,180.17,2.94]
[1755508637881,4.32112715,180.23,180.17,2.94]
[1755508638179,3.13,180.24,180.18,2.94]
[1755508638882,3.13,180.24,180.19,2.94]
[1755508639088,3.13,180.24,180.13,7.18572805]
[1755508639272,3.13,180.26,180.19,2.94]
[1755508639781,3.13,180.26,180.21,2.94]
[1755508639981,3.13,180.24,180.22,2.94]
[1755508641486,3.13,180.24,180.18,5.5468]
[1755508641783,3.13,180.27,180.17,7.18572805]
[1755508641985,3.13,180.27,180.18,2.94]
[1755508642386,3.13,180.27,180.2,3.07]
[1755508642684,3.0,180.25,180.14,3.07]
[1755508642885,3.0,180.23,180.16,3.07]
[1755508645188,3.0,180.28,180.16,3.07]
[1755508645390,141.28,180.29,180.16,3.07]
[1755508645391,3.0,180.26,180.16,3.07]
[1755508646390,3.0,180.24,180.17,3.07]
[1755508649798,3.0,180.24,180.17,8.6172]
[1755508649996,3.0,180.24,180.18,3.07]
[1755508650797,3.0,180.24,180.19,3.07]
[1755508650997,3.0,180.27,180.19,3.07]
[1755508651797,3.0,180.27,180.2,3.07]
[1755508653703,3.0,180.27,180.15,3.07]
[1755508653905,3.0,180.27,180.16,5.5475]
[1755508654106,3.0,180.27,180.17,3.07]
[1755508654296,4.23427185,180.26,180.17,3.07]
[1755508654499,3.0,180.25,180.17,3.07]
[1755508656403,3.0,180.25,180.18,3.07]
[1755508658306,3.0,180.25,180.19,5.5465]
[1755508658506,3.0,180.25,180.2,3.07]
[1755508659506,3.0,180.28,180.15,3.07]
[1755508659704,3.0,180.28,180.2,3.07]
[1755508661107,4.24295756,180.27,180.2,3.07]
[1755508661307,4.24246104,180.26,180.15,5.5478]
[1755508661508,3.0,180.24,180.18,3.07]
[1755508663408,3.0,180.26,180.18,3.07]
[1755508663598,4.25340746,180.25,180.18,3.07]
[1755508663804,3.0,180.26,180.18,5.5466]
[1755508664008,4.25340746,180.25,180.19,3.07]
[1755508664210,4.25340746,180.24,180.19,3.07]
[1755508664512,141.28,180.29,180.2,3.07]
[1755508664712,12.02798731,180.28,180.21,3.07]
[1755508665011,3.0,180.24,180.22,3.07]
[1755508665209,3.0,180.26,180.23,3.07]
[1755508665402,4.25959426,180.25,180.15,3.07]
[1755508665602,4.25959426,180.24,180.15,3.07]
[1755508665802,3.0,180.26,180.15,3.07]
[1755508666007,4.26005812,180.25,180.15,3.07]
[1755508666205,4.26005812,180.24,180.14,7.18572805]
[1755508666405,4.26509419,180.23,180.15,3.07]
[1755508666606,3.0,180.24,180.15,3.07]
[1755508666805,4.26529719,180.23,180.18,5.5467]
[1755508667008,3.0,180.24,180.19,3.07]
[1755508667405,4.26731501,180.23,180.19,3.07]
[1755508667605,3.0,180.28,180.12,3.07]
[1755508667913,3.0,180.26,180.14,3.07]
[1755508668212,3.0,180.24,180.16,5.5473]
[1755508668413,141.28,180.29,180.18,3.07]
[1755508668414,3.0,180.22,180.18,3.07]
[1755508668816,3.0,180.22,180.13,7.18572805]
[1755508668817,3.0,180.22,180.16,3.07]
[1755508669008,3.0,180.28,180.16,3.07]
[1755508669312,3.0,180.26,180.17,3.07]
[1755508669513,3.0,180.24,180.17,3.07]
[1755508672313,4.26234901,180.23,180.17,3.07]
[1755508672513,4.61585899,180.28,180.17,3.07]
[1755508672712,12.04934586,180.27,180.15,4.61585899]
[1755508672915,3.18,180.25,180.17,3.17]
[1755508673114,4.26363471,180.24,180.17,3.17]
[1755508673311,7.44363471,180.23,180.17,3.17]
[1755508673504,3.18,180.23,180.17,3.17]
[1755508678713,3.18,180.23,180.17,8.7171]
[1755508679014,3.18,180.22,180.18,3.17]
[1755508681213,3.18,180.27,180.18,3.17]
[1755508681524,4.61585899,180.28,180.18,3.17]
[1755508681525,3.18,180.25,180.18,3.17]
[1755508681711,4.26712151,180.24,180.18,3.17]
[1755508682020,3.18,180.22,180.18,3.17]
[1755508682219,3.18,180.27,180.18,7.78585899]
[1755508682421,3.18,180.25,180.19,3.17]
[1755508682614,3.18,180.25,180.19,8.7165]
[1755508682815,3.18,180.25,180.2,3.17]
[1755508683019,3.18,180.28,180.24,4.61585899]
[1755508683219,4.25024225,180.27,180.25,3.17]
[1755508683526,3.18,180.28,180.25,3.17]
[1755508683719,3.18,180.33,180.24,7.78585899]
[1755508683918,3.18,180.31,180.24,7.78585899]
[1755508684119,3.18,180.29,180.24,3.17]
[1755508684324,4.24935117,180.28,180.24,8.7149]
[1755508684525,3.18,180.28,180.25,3.17]
[1755508684724,3.18,180.31,180.25,4.61585899]
[1755508684922,3.18,180.31,180.26,8.7144]
[1755508685118,3.18,180.31,180.27,3.17]
[1755508685319,3.18,180.3,180.29,3.17]
[1755508685516,3.18,180.34,180.29,3.17]
[1755508685727,3.18,180.32,180.29,3.17]
[1755508685927,3.18,180.31,180.3,3.17]
[1755508686127,3.18,180.31,180.25,10.16045899]
[1755508686421,139.7,180.37,180.12,15.71325899]
[1755508686422,3.18,180.37,180.29,3.17]
[1755508686929,3.18,180.37,180.32,3.17]
[1755508687226,3.18,180.36,180.32,3.17]
[1755508687524,0.96512515,180.41,180.33,3.17]
[1755508687728,4.22428207,180.4,180.31,4.61585899]
[1755508687925,3.18,180.35,180.34,3.17]
[1755508688120,3.18,180.34,180.33,3.17]
[1755508688320,3.18,180.4,180.31,7.78585899]
[1755508688525,3.18,180.38,180.32,3.17]
[1755508690428,3.18,180.38,180.28,4.61585899]
[1755508690628,3.18,180.38,180.29,3.17]
[1755508691021,3.18,180.36,180.29,3.17]
[1755508692320,4.21273034,180.35,180.24,3.17]
[1755508692522,3.18,180.33,180.24,3.17]
[1755508692730,3.18,180.31,180.24,3.17]
[1755508693717,3.18,180.31,180.22,3.17]
[1755508695627,3.18,180.29,180.22,3.17]
[1755508698418,3.18,180.29,180.17,3.17]
[1755508699028,3.18,180.29,180.2,3.17]
[1755508700623,3.18,180.29,180.21,3.17]
[1755508701028,3.18,180.29,180.21,8.7159]
[1755508701223,3.18,180.29,180.22,3.17]
[1755508705929,3.18,180.29,180.22,8.7153]
[1755508706126,3.18,180.29,180.23,3.04]
[1755508706327,2.9,180.32,180.23,3.04]
[1755508706526,2.9,180.3,180.23,8.5853]
[1755508706726,2.9,180.3,180.24,3.04]
[1755508712729,2.9,180.3,180.19,3.04]
[1755508716143,2.9,180.3,180.21,3.04]
[1755508717736,2.9,180.3,180.23,3.04]
[1755508718745,2.9,180.33,180.26,5.5444]
[1755508718937,2.9,180.33,180.27,3.04]
[1755508720944,2.9,180.31,180.25,3.04]
[1755508721153,2.9,180.31,180.22,3.04]
[1755508722743,2.9,180.31,180.23,3.04]
[1755508725352,2.9,180.29,180.23,3.04]
[1755508726546,2.9,180.29,180.21,3.04]
[1755508726741,4.20446257,180.28,180.21,3.04]
[1755508726946,2.9,180.27,180.21,3.04]
[1755508727348,2.9,180.27,180.19,3.04]
[1755508728854,2.9,180.32,180.21,5.5458]
[1755508729058,2.9,180.3,180.22,3.04]
[1755508729247,2.9,180.28,180.22,3.04]
[1755508730050,2.9,180.28,180.22,5.5456]
[1755508730346,2.9,180.28,180.23,3.04]
[1755508730551,2.9,180.33,180.23,3.04]
[1755508730752,2.9,180.31,180.23,8.5853]
[1755508731055,7.10561413,180.3,180.24,3.04]
[1755508731354,2.9,180.3,180.24,3.04]
[1755508733255,2.9,180.28,180.25,2.98]
[1755508733454,2.9,180.28,180.23,2.98]
[1755508733751,2.9,180.28,180.24,2.98]
[1755508733952,2.9,180.28,180.2,2.98]
[1755508736256,4.21442895,180.27,180.2,2.98]
[1755508736445,2.9,180.26,180.2,2.98]
[1755508740558,2.9,180.24,180.2,2.98]
[1755508740858,22.7864783,180.3,180.15,4.61465744]
[1755508740859,4.21569665,180.23,180.15,4.61465744]
[1755508741057,2.9,180.23,180.22,2.98]
[1755508741351,2.9,180.22,180.21,2.98]
[1755508742755,2.9,180.24,180.21,2.98]
[1755508742955,2.9,180.3,180.19,2.98]
[1755508743156,2.9,180.28,180.19,2.98]
[1755508743457,4.61465744,180.31,180.19,2.98]
[1755508743458,2.9,180.26,180.19,2.98]
[1755508743655,4.22813117,180.25,180.19,2.98]
[1755508743957,2.9,180.25,180.19,2.98]
[1755508745759,2.9,180.25,180.19,5.5465]
[1755508745958,2.9,180.25,180.2,2.98]
[1755508746355,2.9,180.24,180.2,2.98]
[1755508747058,4.61465744,180.31,180.2,2.98]
[1755508747059,2.9,180.3,180.2,2.98]
[1755508747262,2.9,180.28,180.2,2.98]
[1755508747564,2.9,180.26,180.2,2.98]
[1755508753760,4.61465744,180.31,180.2,2.98]
[1755508753965,2.9,180.28,180.2,2.98]
[1755508754167,4.22297781,180.27,180.2,2.98]
[1755508754370,2.9,180.28,180.2,2.98]
[1755508754664,146.5964783,180.33,180.2,2.98]
[1755508754665,4.2227297,180.27,180.2,2.98]
[1755508754862,4.61465744,180.31,180.2,2.98]
[1755508755058,2.9,180.29,180.2,2.98]
[1755508755258,8.7855232,180.3,180.2,2.98]
[1755508755259,2.9,180.27,180.2,2.98]
[1755508755459,4.22262128,180.26,180.2,2.98]
[1755508755659,2.9,180.25,180.21,2.98]
[1755508756764,2.9,180.25,180.22,2.98]
[1755508758764,4.61465744,180.3,180.17,5.5471]
[1755508758967,2.9,180.28,180.18,2.98]
[1755508759169,4.61465744,180.3,180.18,2.98]
[1755508759170,2.9,180.26,180.18,2.98]
[1755508765068,4.22497198,180.25,180.18,2.98]
[1755508765269,2.9,180.26,180.18,2.98]
[1755508765466,4.22502319,180.25,180.18,2.98]
[1755508765670,3.02,180.24,180.18,2.98]
[1755508772272,3.02,180.29,180.18,2.98]
[1755508772466,3.02,180.27,180.18,2.98]
[1755508772666,3.02,180.25,180.18,2.98]
[1755508773475,4.23012719,180.24,180.18,2.98]
[1755508773778,3.02,180.25,180.18,2.98]
[1755508773975,3.02,180.23,180.18,2.98]
[1755508776577,3.02,180.23,180.19,3.03]
[1755508777176,3.02,180.22,180.14,3.03]
[1755508777376,3.02,180.28,180.18,4.61465744]
[1755508777582,4.23430604,180.27,180.22,3.03]
[1755508777881,3.02,180.28,180.23,3.03]
[1755508778082,3.02,180.27,180.23,3.03]
[1755508778285,3.02,180.29,180.23,3.03]
[1755508778479,4.23517026,180.28,180.23,3.03]
[1755508778682,3.02,180.26,180.2,3.03]
[1755508778873,4.17658428,180.25,180.2,3.03]
[1755508779075,3.02,180.23,180.18,3.03]
[1755508779282,3.02,180.23,180.19,3.03]
[1755508779674,3.02,180.27,180.2,3.03]
[1755508779879,7.19645589,180.26,180.2,3.03]
[1755508780081,7.19662865,180.25,180.19,3.03]
[1755508780282,3.02,180.23,180.19,3.03]
[1755508780882,3.02,180.22,180.12,5.5486]
[1755508781082,3.02,180.22,180.13,3.03]
[1755508781983,3.02,180.2,180.13,3.03]
[1755508782782,3.02,180.2,180.07,3.03]
[1755508782990,4.17400773,180.19,180.1,3.03]
[1755508783185,3.02,180.18,180.1,3.03]
[1755508783590,3.02,180.18,180.1,8.5791]
[1755508783792,3.02,180.18,180.11,3.03]
[1755508784595,3.02,180.24,180.12,4.61465744]
[1755508784792,3.02,180.22,180.13,3.03]
[1755508785387,3.02,180.22,180.15,4.61465744]
[1755508785593,3.02,180.22,180.16,3.03]
[1755508786694,3.02,180.22,180.13,3.03]
[1755508788289,3.02,180.22,180.14,4.61465744]
[1755508788486,3.02,180.22,180.15,3.03]
[1755508788689,10.23040503,180.32,180.21,3.03]
[1755508788690,3.02,180.27,180.21,3.03]
[1755508789094,0.96568757,180.32,180.23,4.61465744]
[1755508789295,3.02,180.29,180.24,3.03]
[1755508789693,3.02,180.27,180.22,3.03]
[1755508789896,0.96568757,180.32,180.22,3.03]
[1755508789897,3.02,180.25,180.22,3.03]
[1755508790494,3.02,180.25,180.18,3.03]
[1755508790700,4.16608188,180.24,180.18,3.03]
[1755508790892,3.02,180.3,180.18,3.03]
[1755508791198,3.02,180.28,180.18,3.03]
[1755508791399,3.02,180.26,180.18,3.03]
[1755508791595,3.02,180.28,180.21,3.03]
[1755508791989,3.02,180.28,180.22,3.03]
[1755508792593,2.94,180.31,180.24,4.61465744]
[1755508792909,6.1764783,180.35,180.28,2.97]
[1755508792910,2.94,180.35,180.28,2.97]
[1755508793106,2.94,180.35,180.31,2.97]
[1755508793602,2.94,180.37,180.31,8.5128]
[1755508793797,2.94,180.37,180.32,2.97]
[1755508794301,0.03778854,180.36,180.33,0.03886514]
[1755508794502,0.03778854,180.36,180.34,2.97]
[1755508794702,2.94,180.35,180.34,2.97]
[1755508795091,0.03778854,180.36,180.35,2.97]
[1755508795497,2.94,180.35,180.33,3.00886514]
[1755508795692,0.03778854,180.36,180.34,2.97]
[1755508796495,2.94,180.35,180.33,0.03886514]
[1755508796706,5.542,180.34,180.33,3.00886514]
[1755508797392,8.482,180.34,180.33,3.00886514]
[1755508798302,2.94,180.33,180.26,4.61465744]
[1755508799104,2.94,180.33,180.18,140.2]
[1755508799306,2.94,180.33,180.24,4.61465744]
[1755508799502,0.04206663,180.28,180.24,4.61465744]
[1755508799906,2.94,180.3,180.24,4.61465744]
[1755508800305,0.03909764,180.28,180.25,2.97]
[1755508800707,0.03909764,180.28,180.27,4.61465744]
[1755508800902,0.03909764,180.28,180.27,7.58465744]
[1755508801403,2.94,180.35,180.28,2.97]
[1755508801610,2.94,180.37,180.32,2.97]
[1755508801809,2.94,180.41,180.32,2.97]
[1755508802000,2.94,180.41,180.31,7.58465744]
[1755508802205,2.94,180.41,180.32,2.97]
[1755508803614,2.94,180.41,180.35,2.97]
[1755508804417,372.72,180.46,180.38,2.97]
[1755508804604,2.94,180.43,180.38,2.97]
[1755508804805,140.2,180.48,180.41,5.5396]
[1755508804806,2.94,180.45,180.41,5.5396]
[1755508805001,2.94,180.53,180.42,2.97]
[1755508805910,2.94,180.53,180.36,4.61465744]
[1755508805911,2.94,180.53,180.44,4.61465744]
[1755508806212,2.94,180.53,180.45,2.97]
[1755508806411,2.94,180.56,180.48,2.97]
[1755508806615,2.94,180.63,180.51,2.97]
[1755508806907,2.94,180.63,180.54,2.97]
[1755508807614,5.5347,180.58,180.54,2.97]
[1755508807913,2.94,180.57,180.56,2.97]
[1755508808113,8.4749,180.57,180.53,4.61465744]
[1755508808315,8.4749,180.57,180.56,2.97]
[1755508808708,5.5349,180.57,180.56,2.97]
[1755508809017,2.94,180.65,180.52,2.97]
[1755508809422,2.94,180.62,180.52,2.97]
[1755508809620,2.94,180.69,180.52,2.97]
[1755508809812,2.94,180.69,180.56,2.97]
[1755508810019,0.96361522,180.7,180.55,7.1496875]
[1755508810319,2.94,180.69,180.56,2.97]
[1755508811215,2.94,180.63,180.52,2.97]
[1755508811421,10.0896875,180.63,180.5,2.97]
[1755508811623,2.94,180.62,180.5,2.97]
[1755508812715,2.94,180.62,180.55,5.5355]
[1755508812913,0.04052594,180.58,180.56,2.97]
[1755508813229,2.94,180.57,180.52,7.1496875]
[1755508813428,2.94,180.56,180.52,2.97]
[1755508813618,2.94,180.58,180.49,2.97]
[1755508813818,2.94,180.68,180.54,2.97]
[1755508814014,0.03972181,180.56,180.55,2.97]
[1755508814313,2.94,180.59,180.55,2.97]
[1755508814522,2.94,180.64,180.51,2.97]
[1755508814815,2.94,180.56,180.51,2.97]
[1755508816222,2.94,180.54,180.52,2.97]
[1755508816422,0.04229997,180.57,180.55,2.97]
[1755508816721,0.04229997,180.57,180.56,2.97]
[1755508816928,158.48361522,180.7,180.56,2.97]
[1755508817122,0.03802855,180.58,180.51,2.97]
[1755508817322,0.03802855,180.58,180.55,2.97]
[1755508817518,2.94,180.62,180.55,5.5355]
[1755508817723,2.94,180.62,180.56,2.97]
[1755508817923,0.0377352,180.58,180.54,7.1496875]
[1755508818228,0.0377352,180.58,180.56,2.97]
[1755508818526,2.94,180.59,180.56,2.97]
[1755508818724,2.97906897,180.59,180.57,2.97]
[1755508819426,0.03906897,180.59,180.58,2.97]
[1755508819623,0.03906897,180.59,180.55,2.97]
[1755508819823,0.03906897,180.59,180.51,5.5367]
[1755508820023,2.94,180.56,180.54,2.97]
[1755508820319,2.94,180.56,180.51,5.5367]
[1755508820320,7.1496875,180.69,180.5,7.1496875]
[1755508820525,0.0426506,180.57,180.51,2.97]
[1755508820921,2.94,180.6,180.52,5.5363]
[1755508821123,2.94,180.6,180.53,2.97]
[1755508821433,2.94,180.52,180.46,7.1496875]
[1755508821623,2.94,180.5,180.48,2.97]
[1755508822027,2.94,180.49,180.46,7.1496875]
[1755508822222,2.94,180.49,180.47,2.96]
[1755508822426,0.04124925,180.51,180.47,2.96]
[1755508822828,2.92,180.57,180.5,7.1496875]
[1755508823029,2.92,180.57,180.51,2.96]
[1755508824124,2.92,180.67,180.51,2.96]
[1755508824329,20.72226655,180.66,180.51,2.96]
[1755508824625,2.92,180.64,180.51,8.4966]
[1755508824817,2.92,180.64,180.54,7.1496875]
[1755508825022,2.92,180.64,180.55,2.96]
[1755508825841,2.92,180.64,180.58,2.96]
[1755508827028,2.92,180.63,180.6,2.96]
[1755508827229,2.92,180.63,180.61,2.96]
[1755508827825,2.92,180.69,180.59,2.96]
[1755508828328,2.92,180.69,180.62,2.96]
[1755508828526,2.92,180.69,180.63,2.96]
[1755508828726,2.92,180.69,180.63,8.493]
[1755508828931,2.92,180.68,180.65,2.96]
[1755508829131,2.92,180.67,180.65,2.96]
[1755508829333,2.92,180.74,180.63,2.96]
[1755508831029,2.92,180.72,180.61,7.1496875]
[1755508831337,2.92,180.72,180.61,10.1096875]
[1755508832329,2.92,180.72,180.59,2.96]
[1755508832529,2.92,180.7,180.59,2.96]
[1755508833337,4.08634256,180.69,180.59,2.96]
[1755508833523,2.92,180.68,180.59,2.96]
[1755508835544,2.92,180.66,180.56,2.96]
[1755508835829,2.92,180.66,180.58,2.96]
[1755508836932,2.92,180.66,180.59,2.96]
[1755508837730,2.92,180.66,180.55,7.1496875]
[1755508837731,4.10164308,180.65,180.55,2.96]
[1755508837929,2.92,180.63,180.55,2.96]
[1755508838128,2.92,180.61,180.55,2.96]
[1755508840040,2.92,180.59,180.48,2.96]
[1755508840241,2.92,180.57,180.48,2.96]
[1755508841345,4.11343029,180.56,180.5,2.96]
[1755508841541,6.1764783,180.63,180.47,45.0]
[1755508841741,2.92,180.53,180.51,2.96]
[1755508841935,6.1764783,180.61,180.48,2.96]
[1755508842137,2.92,180.51,180.48,2.96]
[1755508842440,2.92,180.51,180.47,45.0]
[1755508842631,2.92,180.5,180.48,2.96]
[1755508843032,2.92,180.59,180.49,2.96]
[1755508843238,2.92,180.57,180.49,2.96]
[1755508843438,8.62051131,180.58,180.49,2.96]
[1755508843439,2.92,180.55,180.49,2.96]
[1755508843638,4.11755754,180.54,180.47,50.538]
[1755508843839,7.03755754,180.53,180.5,2.96]
[1755508844040,2.92,180.58,180.5,2.96]
[1755508844242,2.92,180.56,180.48,2.96]
[1755508844437,8.63000614,180.57,180.47,45.0]
[1755508844438,2.92,180.54,180.47,45.0]
[1755508844738,2.92,180.52,180.47,45.0]
[1755508844947,7.04163493,180.51,180.47,45.0]
[1755508845242,6.1764783,180.56,180.48,2.96]
[1755508845243,7.04163493,180.5,180.48,2.96]
[1755508845445,2.92,180.56,180.49,2.96]
[1755508845644,4.12712876,180.55,180.47,45.0]
[1755508845842,2.92,180.53,180.51,2.96]
[1755508846143,4.12712876,180.52,180.51,2.96]
[1755508846332,6.1764783,180.6,180.47,45.0]
[1755508846539,14.82092334,180.59,180.5,2.96]
[1755508846736,140.96,180.61,180.5,2.96]
[1755508846737,2.92,180.51,180.5,2.96]
[1755508847137,2.92,180.57,180.5,2.96]
[1755508847343,2.92,180.55,180.5,2.96]
[1755508847543,150.22471746,180.61,180.51,2.96]
[1755508847544,2.92,180.53,180.51,2.96]
[1755508847735,2.92,180.53,180.48,2.96]
[1755508847935,2.92,180.58,180.47,45.0]
[1755508848136,2.92,180.56,180.47,47.96]